[Event "*** Titled Tuesday Blitz"]
[Site "Chess.com"]
[Date "2020.03.03"]
[Round "3"]
[White "Andrew-FB00"]
[Black "Art_Vandelay1980"]
[Result "0-1"]
[WhiteElo "1871"]
[BlackElo "2783"]
[TimeControl "180+1"]
[EndTime "9:25:18 PST"]
[Termination "Art_Vandelay1980 won by resignation"]

1. e4 {[%clk 0:03:00.9]} 1... c5 {[%clk 0:02:55.4]} 2. Nf3 {[%clk 0:03:00.3]}
2... e6 {[%clk 0:02:52.8]} 3. Nc3 {[%clk 0:02:58.3]} 3... d6 {[%clk 0:02:45.9]}
4. Bb5+ {[%clk 0:02:56.9]} 4... Nc6 {[%clk 0:02:39.7]} 5. O-O {[%clk 0:02:54.7]}
5... Bd7 {[%clk 0:02:37.7]} 6. d4 {[%clk 0:02:50.6]} 6... cxd4 {[%clk 0:02:35]}
7. Nxd4 {[%clk 0:02:50.4]} 7... Nf6 {[%clk 0:02:34.6]} 8. Re1 {[%clk 0:02:49.5]}
8... Be7 {[%clk 0:02:34]} 9. Bg5 {[%clk 0:02:46.6]} 9... O-O {[%clk 0:02:33.8]}
10. Nxc6 {[%clk 0:02:41.5]} 10... Bxc6 {[%clk 0:02:15.5]} 11. Bxc6 {[%clk
0:02:38.9]} 11... bxc6 {[%clk 0:02:16.4]} 12. b3 {[%clk 0:02:38.4]} 12... d5
{[%clk 0:02:14]} 13. exd5 {[%clk 0:02:36.4]} 13... cxd5 {[%clk 0:02:13.4]} 14.
Na4 {[%clk 0:02:32.2]} 14... Rc8 {[%clk 0:02:06.7]} 15. Qd3 {[%clk 0:02:29.6]}
15... Qc7 {[%clk 0:01:50.1]} 16. Re2 {[%clk 0:02:20]} 16... Ng4 {[%clk
0:01:49.5]} 17. Bxe7 {[%clk 0:02:17.6]} 17... Qxh2+ {[%clk 0:01:46.9]} 0-1

[Event "*** Titled Tuesday Blitz"]
[Site "Chess.com"]
[Date "2020.03.03"]
[Round "3"]
[White "livestrong04"]
[Black "Olga_Zhuravleva"]
[Result "1-0"]
[WhiteElo "2409"]
[BlackElo "2222"]
[TimeControl "180+1"]
[EndTime "9:25:35 PST"]
[Termination "livestrong04 won by resignation"]

1. d4 {[%clk 0:03:00.9]} 1... g6 {[%clk 0:02:57.7]} 2. Nf3 {[%clk 0:03:00.3]}
2... Bg7 {[%clk 0:02:58.1]} 3. Bg5 {[%clk 0:02:59.5]} 3... d6 {[%clk 0:02:57.4]}
4. e3 {[%clk 0:02:59.7]} 4... Nd7 {[%clk 0:02:56.1]} 5. c3 {[%clk 0:02:59.9]}
5... c6 {[%clk 0:02:56.6]} 6. Be2 {[%clk 0:02:59.9]} 6... Qa5 {[%clk 0:02:51]}
7. O-O {[%clk 0:02:58.5]} 7... b5 {[%clk 0:02:50.1]} 8. Nbd2 {[%clk 0:02:55.7]}
8... Bb7 {[%clk 0:02:50.5]} 9. a4 {[%clk 0:02:55.4]} 9... bxa4 {[%clk
0:02:43.5]} 10. Rxa4 {[%clk 0:02:54.5]} 10... Qc7 {[%clk 0:02:44]} 11. Nc4
{[%clk 0:02:54.4]} 11... Ngf6 {[%clk 0:02:41.1]} 12. Na5 {[%clk 0:02:53.8]}
12... O-O {[%clk 0:02:40]} 13. Nd2 {[%clk 0:02:48.2]} 13... h6 {[%clk
0:02:38.6]} 14. Bh4 {[%clk 0:02:47.6]} 14... e5 {[%clk 0:02:39]} 15. Bg3 {[%clk
0:02:46.9]} 15... Nh5 {[%clk 0:02:36.6]} 16. Bxh5 {[%clk 0:02:45.9]} 16... gxh5
{[%clk 0:02:36.1]} 17. Qxh5 {[%clk 0:02:43.3]} 17... exd4 {[%clk 0:02:33]} 18.
exd4 {[%clk 0:02:36.9]} 18... Ba6 {[%clk 0:02:32.7]} 19. Nac4 {[%clk 0:02:16.9]}
19... Bb5 {[%clk 0:02:29.9]} 20. Bxd6 {[%clk 0:02:09.6]} 20... Qd8 {[%clk
0:02:20.4]} 21. Bxf8 {[%clk 0:02:07.7]} 21... Bxa4 {[%clk 0:02:15.1]} 22. Bxg7
{[%clk 0:02:06.4]} 22... Kxg7 {[%clk 0:02:16]} 23. Nd6 {[%clk 0:02:00.6]} 23...
Qe7 {[%clk 0:02:02.1]} 24. Nf5+ {[%clk 0:01:59.3]} 1-0

[Event "*** Titled Tuesday Blitz"]
[Site "Chess.com"]
[Date "2020.03.03"]
[Round "3"]
[White "Dino_Ballecer"]
[Black "Pultis"]
[Result "0-1"]
[WhiteElo "2506"]
[BlackElo "2776"]
[TimeControl "180+1"]
[EndTime "9:25:36 PST"]
[Termination "Pultis won by resignation"]

1. e4 {[%clk 0:03:00.9]} 1... c6 {[%clk 0:02:59.5]} 2. d4 {[%clk 0:02:59.3]}
2... d5 {[%clk 0:02:59.8]} 3. exd5 {[%clk 0:03:00.2]} 3... cxd5 {[%clk
0:02:59.7]} 4. Bd3 {[%clk 0:02:55.3]} 4... Nc6 {[%clk 0:02:58.3]} 5. c3 {[%clk
0:02:55]} 5... Nf6 {[%clk 0:02:55.6]} 6. Bf4 {[%clk 0:02:54.4]} 6... Bg4 {[%clk
0:02:52.3]} 7. Nf3 {[%clk 0:02:52.3]} 7... Qb6 {[%clk 0:02:48.2]} 8. Qb3 {[%clk
0:02:37.3]} 8... Bxf3 {[%clk 0:02:41.1]} 9. Qxb6 {[%clk 0:02:34.8]} 9... axb6
{[%clk 0:02:40.5]} 10. gxf3 {[%clk 0:02:35.7]} 10... e6 {[%clk 0:02:37.9]} 11.
Nd2 {[%clk 0:02:33.5]} 11... Kd7 {[%clk 0:02:36]} 12. a3 {[%clk 0:02:31.7]}
12... Bd6 {[%clk 0:02:35.9]} 13. Bg3 {[%clk 0:02:28.1]} 13... Nh5 {[%clk
0:02:34]} 14. O-O-O {[%clk 0:02:25.3]} 14... Nf4 {[%clk 0:02:32.2]} 15. Kc2
{[%clk 0:02:24.1]} 15... Nxd4+ {[%clk 0:02:24.1]} 16. cxd4 {[%clk 0:02:19.1]}
16... Rhc8+ {[%clk 0:02:24.1]} 17. Bc4 {[%clk 0:02:06.7]} 17... b5 {[%clk
0:02:22]} 18. Kb1 {[%clk 0:01:39.1]} 18... bxc4 {[%clk 0:02:21.3]} 19. Bxf4
{[%clk 0:01:38.8]} 19... Bxf4 {[%clk 0:02:21]} 20. Nf1 {[%clk 0:01:38.4]} 20...
c3 {[%clk 0:02:19.5]} 0-1

[Event "*** Titled Tuesday Blitz"]
[Site "Chess.com"]
[Date "2020.03.03"]
[Round "3"]
[White "xamax2000"]
[Black "TigrVShlyape"]
[Result "0-1"]
[WhiteElo "2689"]
[BlackElo "2877"]
[TimeControl "180+1"]
[EndTime "9:25:59 PST"]
[Termination "TigrVShlyape won by resignation"]

1. c4 {[%clk 0:03:00.8]} 1... c6 {[%clk 0:02:55.1]} 2. d4 {[%clk 0:03:01.1]}
2... d5 {[%clk 0:02:55.1]} 3. Nf3 {[%clk 0:03:02]} 3... Nf6 {[%clk 0:02:55.2]}
4. e3 {[%clk 0:03:02.9]} 4... g6 {[%clk 0:02:54.4]} 5. Nc3 {[%clk 0:02:58.2]}
5... Bg7 {[%clk 0:02:54.2]} 6. h3 {[%clk 0:02:51.7]} 6... O-O {[%clk 0:02:53.1]}
7. Bd2 {[%clk 0:02:51.5]} 7... b6 {[%clk 0:02:52.4]} 8. Bd3 {[%clk 0:02:50.1]}
8... Bb7 {[%clk 0:02:52.3]} 9. O-O {[%clk 0:02:50.3]} 9... e6 {[%clk 0:02:40.1]}
10. e4 {[%clk 0:02:50.1]} 10... dxe4 {[%clk 0:02:38]} 11. Nxe4 {[%clk
0:02:50.1]} 11... c5 {[%clk 0:02:34.5]} 12. Nxf6+ {[%clk 0:02:44.1]} 12... Bxf6
{[%clk 0:02:33]} 13. Bh6 {[%clk 0:02:44.4]} 13... Re8 {[%clk 0:02:31.2]} 14. d5
{[%clk 0:02:42.7]} 14... exd5 {[%clk 0:02:29.8]} 15. cxd5 {[%clk 0:02:42.8]}
15... Bxd5 {[%clk 0:02:24.4]} 16. Bb5 {[%clk 0:02:41.7]} 16... Bc6 {[%clk
0:02:20]} 17. Qa4 {[%clk 0:02:39.4]} 17... Bxb5 {[%clk 0:02:13.7]} 18. Qxb5
{[%clk 0:02:40.3]} 18... Qd7 {[%clk 0:02:11.7]} 19. Qc4 {[%clk 0:02:29.2]} 19...
Nc6 {[%clk 0:02:10.9]} 20. Rad1 {[%clk 0:02:29.8]} 20... Nd4 {[%clk 0:02:07.1]}
21. Nxd4 {[%clk 0:02:28.3]} 21... Bxd4 {[%clk 0:02:03.4]} 22. Be3 {[%clk
0:02:15.2]} 22... Rad8 {[%clk 0:01:54.5]} 23. Bg5 {[%clk 0:02:09.9]} 23... Qd5
{[%clk 0:01:51.9]} 24. Qxd5 {[%clk 0:01:54.1]} 24... Rxd5 {[%clk 0:01:51.3]} 25.
Be3 {[%clk 0:01:55]} 25... Red8 {[%clk 0:01:50.5]} 26. Bg5 {[%clk 0:01:53.2]}
26... Rxg5 {[%clk 0:01:49.3]} 0-1

[Event "*** Titled Tuesday Blitz"]
[Site "Chess.com"]
[Date "2020.03.03"]
[Round "3"]
[White "Chigorinetz"]
[Black "saraswathii"]
[Result "1-0"]
[WhiteElo "2577"]
[BlackElo "2241"]
[TimeControl "180+1"]
[EndTime "9:26:05 PST"]
[Termination "Chigorinetz won by resignation"]

1. e4 {[%clk 0:03:00.9]} 1... c5 {[%clk 0:02:59.7]} 2. Nc3 {[%clk 0:02:59.8]}
2... e6 {[%clk 0:02:59.6]} 3. Nge2 {[%clk 0:02:58.7]} 3... Nc6 {[%clk 0:02:58]}
4. g3 {[%clk 0:02:58.2]} 4... Nf6 {[%clk 0:02:56.9]} 5. Bg2 {[%clk 0:02:57.2]}
5... d5 {[%clk 0:02:55.9]} 6. exd5 {[%clk 0:02:56.7]} 6... exd5 {[%clk
0:02:55.2]} 7. d4 {[%clk 0:02:56]} 7... Be6 {[%clk 0:02:53.3]} 8. O-O {[%clk
0:02:53.3]} 8... Be7 {[%clk 0:02:42]} 9. h3 {[%clk 0:02:43]} 9... O-O {[%clk
0:02:38.3]} 10. Be3 {[%clk 0:02:42.3]} 10... c4 {[%clk 0:02:34.8]} 11. g4 {[%clk
0:02:41.8]} 11... h6 {[%clk 0:02:33.3]} 12. f4 {[%clk 0:02:40.2]} 12... a6
{[%clk 0:02:27.2]} 13. f5 {[%clk 0:02:38]} 13... Bc8 {[%clk 0:02:26.1]} 14. Nf4
{[%clk 0:02:37.4]} 14... Ne4 {[%clk 0:02:22.4]} 15. Ncxd5 {[%clk 0:02:32.1]}
15... Nd6 {[%clk 0:02:17.5]} 16. Qf3 {[%clk 0:02:24.7]} 16... Bg5 {[%clk
0:02:13]} 17. Rae1 {[%clk 0:02:21]} 17... b5 {[%clk 0:02:09.5]} 18. Nb6 {[%clk
0:01:59.4]} 18... Qxb6 {[%clk 0:02:03.8]} 19. Qxc6 {[%clk 0:01:58.3]} 19... Qxc6
{[%clk 0:02:03.3]} 20. Bxc6 {[%clk 0:01:57.9]} 20... Rb8 {[%clk 0:02:03]} 21.
Nd5 {[%clk 0:01:55.1]} 21... Bxe3+ {[%clk 0:02:00.5]} 22. Rxe3 {[%clk
0:01:54.2]} 22... Bb7 {[%clk 0:02:00.4]} 23. Bxb7 {[%clk 0:01:47.8]} 23... Rxb7
{[%clk 0:02:01.3]} 24. f6 {[%clk 0:01:48.5]} 24... gxf6 {[%clk 0:01:58.8]} 25.
Rxf6 {[%clk 0:01:46.2]} 1-0

[Event "*** Titled Tuesday Blitz"]
[Site "Chess.com"]
[Date "2020.03.03"]
[Round "3"]
[White "Misha_Bilous"]
[Black "AndreyNeves"]
[Result "1-0"]
[WhiteElo "2455"]
[BlackElo "2173"]
[TimeControl "180+1"]
[EndTime "9:26:23 PST"]
[Termination "Misha_Bilous won by checkmate"]

1. d4 {[%clk 0:03:00.9]} 1... Nf6 {[%clk 0:02:58.7]} 2. c4 {[%clk 0:03:01.3]}
2... e6 {[%clk 0:02:56.4]} 3. Nf3 {[%clk 0:03:00.9]} 3... d5 {[%clk 0:02:53.7]}
4. Nc3 {[%clk 0:03:00.9]} 4... c6 {[%clk 0:02:52]} 5. e3 {[%clk 0:03:00.6]} 5...
Nbd7 {[%clk 0:02:50.1]} 6. Qc2 {[%clk 0:03:01]} 6... Bd6 {[%clk 0:02:49.6]} 7.
b3 {[%clk 0:03:01.3]} 7... O-O {[%clk 0:02:47.6]} 8. Be2 {[%clk 0:03:01.1]} 8...
b6 {[%clk 0:02:47.5]} 9. Bb2 {[%clk 0:03:01.3]} 9... Bb7 {[%clk 0:02:46.1]} 10.
O-O {[%clk 0:03:01.8]} 10... Rc8 {[%clk 0:02:43.4]} 11. Rad1 {[%clk 0:03:02.1]}
11... Qc7 {[%clk 0:02:37.7]} 12. Rfe1 {[%clk 0:03:01.4]} 12... Qb8 {[%clk
0:02:36.9]} 13. h3 {[%clk 0:02:59.7]} 13... Qa8 {[%clk 0:02:27.7]} 14. e4 {[%clk
0:02:55]} 14... dxe4 {[%clk 0:02:17.2]} 15. Nxe4 {[%clk 0:02:55.9]} 15... Nxe4
{[%clk 0:02:17.7]} 16. Qxe4 {[%clk 0:02:56.8]} 16... c5 {[%clk 0:02:17.7]} 17.
Qh4 {[%clk 0:02:55]} 17... cxd4 {[%clk 0:02:12.7]} 18. Rxd4 {[%clk 0:02:49.3]}
18... Be5 {[%clk 0:02:03.9]} 19. Bd3 {[%clk 0:02:20]} 19... h6 {[%clk
0:01:18.3]} 20. Nxe5 {[%clk 0:02:18.4]} 20... Nxe5 {[%clk 0:01:14.9]} 21. Rxe5
{[%clk 0:02:18.5]} 21... Bxg2 {[%clk 0:01:14.6]} 22. Rg4 {[%clk 0:02:17.6]}
22... Bf3 {[%clk 0:01:03.6]} 23. Rxg7+ {[%clk 0:02:15.6]} 23... Kxg7 {[%clk
0:01:02.7]} 24. Rg5# {[%clk 0:02:16.1]} 1-0

[Event "*** Titled Tuesday Blitz"]
[Site "Chess.com"]
[Date "2020.03.03"]
[Round "3"]
[White "Vaathi_Coming"]
[Black "Sven_Tica"]
[Result "1-0"]
[WhiteElo "2848"]
[BlackElo "2676"]
[TimeControl "180+1"]
[EndTime "9:26:37 PST"]
[Termination "Vaathi_Coming won by resignation"]

1. c4 {[%clk 0:03:00.9]} 1... e6 {[%clk 0:02:59.4]} 2. Nc3 {[%clk 0:03:00.4]}
2... d5 {[%clk 0:02:59.8]} 3. d4 {[%clk 0:03:00.5]} 3... Nf6 {[%clk 0:03:00.2]}
4. cxd5 {[%clk 0:03:00]} 4... exd5 {[%clk 0:03:01.1]} 5. Bf4 {[%clk 0:03:00.3]}
5... c6 {[%clk 0:02:58.5]} 6. e3 {[%clk 0:03:00.5]} 6... Bd6 {[%clk 0:02:58.8]}
7. Bxd6 {[%clk 0:02:59.2]} 7... Qxd6 {[%clk 0:02:59.7]} 8. Bd3 {[%clk
0:02:58.8]} 8... O-O {[%clk 0:02:58.5]} 9. Nf3 {[%clk 0:02:57.6]} 9... Nbd7
{[%clk 0:02:57.7]} 10. O-O {[%clk 0:02:56.6]} 10... Re8 {[%clk 0:02:58.2]} 11.
Rb1 {[%clk 0:02:53.1]} 11... a5 {[%clk 0:02:53.4]} 12. a3 {[%clk 0:02:48.5]}
12... Nf8 {[%clk 0:02:51.9]} 13. Ne5 {[%clk 0:02:48.6]} 13... Ng6 {[%clk
0:02:51.4]} 14. f4 {[%clk 0:02:48.5]} 14... b5 {[%clk 0:02:49.2]} 15. Qc2 {[%clk
0:02:42]} 15... Ng4 {[%clk 0:02:41.9]} 16. Rbe1 {[%clk 0:02:41.5]} 16... N6xe5
{[%clk 0:02:24.8]} 17. dxe5 {[%clk 0:02:21.1]} 17... Qh6 {[%clk 0:02:16.9]} 18.
h3 {[%clk 0:02:14.9]} 18... Nxe3 {[%clk 0:02:14.9]} 19. Rxe3 {[%clk 0:02:15.8]}
19... d4 {[%clk 0:02:15.5]} 20. Rg3 {[%clk 0:02:09.3]} 20... dxc3 {[%clk
0:02:08.2]} 21. Qxc3 {[%clk 0:02:10.2]} 21... Ba6 {[%clk 0:02:05]} 22. b4 {[%clk
0:02:07.6]} 22... axb4 {[%clk 0:02:01.1]} 23. axb4 {[%clk 0:02:08.5]} 23... Rad8
{[%clk 0:01:58.2]} 24. f5 {[%clk 0:01:51]} 24... Qh4 {[%clk 0:01:43.1]} 25. Rg4
{[%clk 0:01:47.3]} 25... Qe7 {[%clk 0:01:39.5]} 26. Rxg7+ {[%clk 0:01:44.9]}
26... Kf8 {[%clk 0:01:36.4]} 27. Rxh7 {[%clk 0:01:42.8]} 27... Qa7+ {[%clk
0:01:34.8]} 28. Kh1 {[%clk 0:01:34.3]} 1-0

[Event "*** Titled Tuesday Blitz"]
[Site "Chess.com"]
[Date "2020.03.03"]
[Round "3"]
[White "Saitama_Hero"]
[Black "Astaneh"]
[Result "0-1"]
[WhiteElo "2268"]
[BlackElo "2552"]
[TimeControl "180+1"]
[EndTime "9:27:11 PST"]
[Termination "Astaneh won by resignation"]

1. d4 {[%clk 0:03:00.9]} 1... d5 {[%clk 0:02:59.4]} 2. Bf4 {[%clk 0:02:55.3]}
2... c5 {[%clk 0:02:57.5]} 3. e3 {[%clk 0:02:56.2]} 3... Qb6 {[%clk 0:02:56.2]}
4. Nc3 {[%clk 0:02:47.6]} 4... Nf6 {[%clk 0:02:46.8]} 5. Na4 {[%clk 0:02:42.5]}
5... Qa5+ {[%clk 0:02:46.2]} 6. c3 {[%clk 0:02:26.4]} 6... Nbd7 {[%clk
0:02:38.4]} 7. a3 {[%clk 0:02:12.6]} 7... c4 {[%clk 0:02:29.3]} 8. b4 {[%clk
0:02:07.2]} 8... cxb3 {[%clk 0:02:29.4]} 9. Qxb3 {[%clk 0:02:03.9]} 9... e6
{[%clk 0:02:28.4]} 10. Nf3 {[%clk 0:02:00.9]} 10... Be7 {[%clk 0:02:28.3]} 11.
Bb5 {[%clk 0:01:58]} 11... O-O {[%clk 0:02:28.3]} 12. O-O {[%clk 0:01:55.7]}
12... a6 {[%clk 0:02:28.4]} 13. Be2 {[%clk 0:01:42.9]} 13... b5 {[%clk
0:02:28.1]} 14. Nb2 {[%clk 0:01:43.2]} 14... Nb6 {[%clk 0:02:28.2]} 15. a4
{[%clk 0:01:34.2]} 15... b4 {[%clk 0:02:26.8]} 16. c4 {[%clk 0:01:31.8]} 16...
dxc4 {[%clk 0:02:26.5]} 17. Nxc4 {[%clk 0:01:30.7]} 17... Nxc4 {[%clk 0:02:27]}
18. Bxc4 {[%clk 0:01:30.9]} 18... Bb7 {[%clk 0:02:27.8]} 19. Ne5 {[%clk
0:01:29.4]} 19... Rac8 {[%clk 0:02:27.9]} 20. Rac1 {[%clk 0:01:24.5]} 20... h6
{[%clk 0:02:25.2]} 21. Bxe6 {[%clk 0:01:21.3]} 21... Bd5 {[%clk 0:02:14.4]} 22.
Bxd5 {[%clk 0:01:16.3]} 22... Nxd5 {[%clk 0:02:13.7]} 23. Nc6 {[%clk 0:01:13.9]}
23... Rxc6 {[%clk 0:02:10.4]} 24. Rxc6 {[%clk 0:01:12.3]} 24... Nc3 {[%clk
0:02:10.9]} 25. Qc4 {[%clk 0:00:45.9]} 25... Qxa4 {[%clk 0:02:07.3]} 26. Rxa6
{[%clk 0:00:44.7]} 26... Qc2 {[%clk 0:02:07.8]} 27. Kh1 {[%clk 0:00:41.7]} 27...
b3 {[%clk 0:02:03.7]} 28. Rc6 {[%clk 0:00:29.2]} 28... b2 {[%clk 0:02:02.1]} 29.
Qxc3 {[%clk 0:00:28.7]} 29... b1=Q {[%clk 0:02:01.9]} 0-1

[Event "*** Titled Tuesday Blitz"]
[Site "Chess.com"]
[Date "2020.03.03"]
[Round "3"]
[White "Tjktiger"]
[Black "vovachesss"]
[Result "1-0"]
[WhiteElo "2790"]
[BlackElo "2571"]
[TimeControl "180+1"]
[EndTime "9:27:13 PST"]
[Termination "Tjktiger won by resignation"]

1. d4 {[%clk 0:03:00.1]} 1... Nf6 {[%clk 0:02:54.8]} 2. c4 {[%clk 0:03:00]} 2...
e6 {[%clk 0:02:53.7]} 3. g3 {[%clk 0:03:00.1]} 3... Bb4+ {[%clk 0:02:53.8]} 4.
Bd2 {[%clk 0:02:57.5]} 4... Qe7 {[%clk 0:02:53.4]} 5. Bg2 {[%clk 0:02:56.4]}
5... O-O {[%clk 0:02:54]} 6. e3 {[%clk 0:02:54.7]} 6... c5 {[%clk 0:02:54.5]} 7.
Bxb4 {[%clk 0:02:51.1]} 7... cxb4 {[%clk 0:02:54.2]} 8. Ne2 {[%clk 0:02:52]}
8... d5 {[%clk 0:02:54.1]} 9. cxd5 {[%clk 0:02:49.8]} 9... exd5 {[%clk
0:02:50.3]} 10. Nf4 {[%clk 0:02:49.1]} 10... Bg4 {[%clk 0:02:09.9]} 11. Nxd5
{[%clk 0:02:26.1]} 11... Nxd5 {[%clk 0:02:09.8]} 12. Qxg4 {[%clk 0:02:25.9]}
12... Nxe3 {[%clk 0:01:56.7]} 13. fxe3 {[%clk 0:02:25.8]} 13... Qxe3+ {[%clk
0:01:57.6]} 14. Qe2 {[%clk 0:02:24]} 14... Qxd4 {[%clk 0:01:56.6]} 15. Bxb7
{[%clk 0:02:19.9]} 15... Nd7 {[%clk 0:01:47.4]} 16. Bxa8 {[%clk 0:02:19.8]}
16... Rxa8 {[%clk 0:01:46.8]} 17. Nd2 {[%clk 0:02:17.9]} 17... Qxb2 {[%clk
0:01:46]} 18. O-O {[%clk 0:02:16.7]} 18... Nf6 {[%clk 0:01:43.7]} 19. Rab1
{[%clk 0:01:46.9]} 19... Qxa2 {[%clk 0:01:42.2]} 20. Rxb4 {[%clk 0:01:29.8]}
20... Rd8 {[%clk 0:01:41.5]} 21. Qe7 {[%clk 0:01:20]} 21... Qxd2 {[%clk
0:01:35]} 22. Rxf6 {[%clk 0:01:02.9]} 22... gxf6 {[%clk 0:01:29]} 23. Rg4+
{[%clk 0:01:01.6]} 1-0

[Event "*** Titled Tuesday Blitz"]
[Site "Chess.com"]
[Date "2020.03.03"]
[Round "3"]
[White "IMDT02"]
[Black "Grandelicious"]
[Result "0-1"]
[WhiteElo "2464"]
[BlackElo "2687"]
[TimeControl "180+1"]
[EndTime "9:27:24 PST"]
[Termination "Grandelicious won by resignation"]

1. d4 {[%clk 0:03:00.9]} 1... Nf6 {[%clk 0:02:17.8]} 2. c4 {[%clk 0:03:00.5]}
2... e6 {[%clk 0:02:18.3]} 3. Nc3 {[%clk 0:03:00.8]} 3... Bb4 {[%clk 0:02:18]}
4. e3 {[%clk 0:03:01.4]} 4... O-O {[%clk 0:02:17.2]} 5. Ne2 {[%clk 0:03:01.9]}
5... c6 {[%clk 0:02:17.8]} 6. a3 {[%clk 0:03:01.5]} 6... Ba5 {[%clk 0:02:18.1]}
7. Ng3 {[%clk 0:03:02.2]} 7... d5 {[%clk 0:02:18]} 8. Qc2 {[%clk 0:02:54.6]}
8... Nbd7 {[%clk 0:02:17.3]} 9. Bd2 {[%clk 0:02:53.7]} 9... Re8 {[%clk
0:02:16.8]} 10. cxd5 {[%clk 0:02:51.3]} 10... exd5 {[%clk 0:02:15.9]} 11. Bd3
{[%clk 0:02:51.2]} 11... Nf8 {[%clk 0:02:13.3]} 12. O-O {[%clk 0:02:50.9]} 12...
Ng6 {[%clk 0:02:11.5]} 13. f3 {[%clk 0:02:49.5]} 13... Bd7 {[%clk 0:02:08.8]}
14. Na4 {[%clk 0:02:39.9]} 14... Bc7 {[%clk 0:02:03]} 15. Nc5 {[%clk 0:02:39.7]}
15... Bc8 {[%clk 0:01:59.5]} 16. b4 {[%clk 0:02:32.5]} 16... a6 {[%clk
0:01:55.7]} 17. Nb3 {[%clk 0:02:30.2]} 17... Qd6 {[%clk 0:01:46.3]} 18. f4
{[%clk 0:02:26]} 18... Ne7 {[%clk 0:01:41.2]} 19. a4 {[%clk 0:02:24.4]} 19... h5
{[%clk 0:01:37.6]} 20. b5 {[%clk 0:02:01.6]} 20... axb5 {[%clk 0:01:36.5]} 21.
axb5 {[%clk 0:02:02.5]} 21... Rxa1 {[%clk 0:01:37.1]} 22. Rxa1 {[%clk
0:02:01.6]} 22... h4 {[%clk 0:01:37.7]} 23. Ne2 {[%clk 0:02:01.4]} 23... h3
{[%clk 0:01:38.2]} 24. bxc6 {[%clk 0:01:52.7]} 24... Nxc6 {[%clk 0:01:33.7]} 25.
g3 {[%clk 0:01:49.3]} 25... Ng4 {[%clk 0:01:29.6]} 26. e4 {[%clk 0:01:41.7]}
26... dxe4 {[%clk 0:01:30.5]} 27. Bxe4 {[%clk 0:01:41.3]} 27... Be6 {[%clk
0:01:27.9]} 28. Bf3 {[%clk 0:01:13.4]} 28... Bxb3 {[%clk 0:01:24.5]} 29. Qxb3
{[%clk 0:01:12]} 29... Nxd4 {[%clk 0:01:22]} 0-1

[Event "*** Titled Tuesday Blitz"]
[Site "Chess.com"]
[Date "2020.03.03"]
[Round "3"]
[White "albi1999"]
[Black "SHIVACalypso"]
[Result "1-0"]
[WhiteElo "2574"]
[BlackElo "2197"]
[TimeControl "180+1"]
[EndTime "9:27:27 PST"]
[Termination "albi1999 won by resignation"]

1. d4 {[%clk 0:03:00.9]} 1... e6 {[%clk 0:02:59.8]} 2. c4 {[%clk 0:02:58.4]}
2... Nf6 {[%clk 0:02:59.4]} 3. Nf3 {[%clk 0:02:56.8]} 3... d5 {[%clk 0:02:55.8]}
4. g3 {[%clk 0:02:54.9]} 4... Be7 {[%clk 0:02:55]} 5. Bg2 {[%clk 0:02:53.9]}
5... O-O {[%clk 0:02:54.9]} 6. O-O {[%clk 0:02:52.9]} 6... dxc4 {[%clk 0:02:55]}
7. Qc2 {[%clk 0:02:52.7]} 7... a6 {[%clk 0:02:54.3]} 8. a4 {[%clk 0:02:52.6]}
8... Bd7 {[%clk 0:02:53.5]} 9. Rd1 {[%clk 0:02:53.1]} 9... Bc6 {[%clk
0:02:49.2]} 10. Bg5 {[%clk 0:02:53.4]} 10... b5 {[%clk 0:02:34.7]} 11. Bxf6
{[%clk 0:02:35.3]} 11... Bxf6 {[%clk 0:02:33.1]} 12. Nc3 {[%clk 0:02:35.9]}
12... b4 {[%clk 0:02:20]} 13. Ne4 {[%clk 0:02:29.2]} 13... Bxe4 {[%clk
0:02:05.1]} 14. Qxe4 {[%clk 0:02:28.1]} 14... Nd7 {[%clk 0:02:04.8]} 15. Rac1
{[%clk 0:02:15.6]} 15... a5 {[%clk 0:01:32.2]} 16. Ne5 {[%clk 0:02:11]} 16...
Nb6 {[%clk 0:01:20.3]} 17. Nxc4 {[%clk 0:02:06]} 17... Rb8 {[%clk 0:01:13.9]}
18. Nxa5 {[%clk 0:02:04.6]} 18... Qd7 {[%clk 0:01:08.5]} 19. b3 {[%clk
0:02:03.5]} 19... Nd5 {[%clk 0:01:04.5]} 20. Qd3 {[%clk 0:01:52.3]} 20... Rb6
{[%clk 0:01:03.8]} 21. Bxd5 {[%clk 0:01:49.4]} 21... Qxd5 {[%clk 0:01:02.2]} 22.
Nc4 {[%clk 0:01:46.1]} 22... Rc6 {[%clk 0:00:59]} 23. e4 {[%clk 0:01:45.6]}
23... Qd7 {[%clk 0:00:56.6]} 24. d5 {[%clk 0:01:42.8]} 24... exd5 {[%clk
0:00:54.2]} 25. exd5 {[%clk 0:01:43.7]} 25... Ra6 {[%clk 0:00:53.7]} 26. Ne5
{[%clk 0:01:40.7]} 26... Qd6 {[%clk 0:00:43.8]} 27. Nc6 {[%clk 0:01:40.2]} 27...
Bc3 {[%clk 0:00:40.8]} 28. Qxa6 {[%clk 0:01:38.5]} 1-0

[Event "*** Titled Tuesday Blitz"]
[Site "Chess.com"]
[Date "2020.03.03"]
[Round "3"]
[White "riconaipe"]
[Black "piscatorox"]
[Result "1-0"]
[WhiteElo "2580"]
[BlackElo "2260"]
[TimeControl "180+1"]
[EndTime "9:27:29 PST"]
[Termination "riconaipe won by resignation"]

1. e4 {[%clk 0:02:59.7]} 1... d5 {[%clk 0:02:59.2]} 2. exd5 {[%clk 0:02:59]}
2... Nf6 {[%clk 0:02:59.2]} 3. c4 {[%clk 0:02:58.1]} 3... e6 {[%clk 0:02:58.8]}
4. dxe6 {[%clk 0:02:58.1]} 4... Bc5 {[%clk 0:02:58.6]} 5. exf7+ {[%clk
0:02:56.3]} 5... Kxf7 {[%clk 0:02:57.5]} 6. Nf3 {[%clk 0:02:55.2]} 6... Nc6
{[%clk 0:02:57.3]} 7. d4 {[%clk 0:02:50.6]} 7... Re8+ {[%clk 0:02:37.6]} 8. Be2
{[%clk 0:02:49.5]} 8... Nxd4 {[%clk 0:02:29.8]} 9. Nxd4 {[%clk 0:02:39.8]} 9...
Qxd4 {[%clk 0:02:02.6]} 10. O-O {[%clk 0:02:35.4]} 10... Ng4 {[%clk 0:01:44.7]}
11. Bxg4 {[%clk 0:02:25.5]} 11... Bxg4 {[%clk 0:01:41.5]} 12. Qxd4 {[%clk
0:02:24.2]} 12... Bxd4 {[%clk 0:01:40.9]} 13. Nc3 {[%clk 0:02:22.9]} 13... Be2
{[%clk 0:01:16.3]} 14. Nxe2 {[%clk 0:02:19.2]} 14... Rxe2 {[%clk 0:01:15.9]} 15.
Be3 {[%clk 0:02:19.6]} 15... Bxe3 {[%clk 0:01:02]} 16. fxe3+ {[%clk 0:02:19.3]}
16... Ke6 {[%clk 0:01:02.1]} 17. Rf2 {[%clk 0:02:16]} 17... Rxe3 {[%clk
0:01:00.6]} 18. Rd1 {[%clk 0:02:15.3]} 18... Re8 {[%clk 0:00:55.1]} 19. b3
{[%clk 0:02:13]} 19... Re7 {[%clk 0:00:51.9]} 20. g3 {[%clk 0:02:13.1]} 20...
Ke5 {[%clk 0:00:40.3]} 21. Kg2 {[%clk 0:02:13.1]} 21... c6 {[%clk 0:00:36.3]}
22. Rd8 {[%clk 0:02:10.6]} 22... a6 {[%clk 0:00:29.1]} 23. h4 {[%clk 0:02:08.7]}
23... g6 {[%clk 0:00:28]} 24. g4 {[%clk 0:02:07.9]} 24... Re4 {[%clk 0:00:26.8]}
25. Kg3 {[%clk 0:02:07.8]} 25... h5 {[%clk 0:00:19.1]} 26. gxh5 {[%clk
0:02:04.7]} 26... gxh5 {[%clk 0:00:18.6]} 27. Rg8 {[%clk 0:02:05]} 27... Re3+
{[%clk 0:00:16.9]} 28. Rf3 {[%clk 0:02:01.7]} 28... Rxf3+ {[%clk 0:00:15.9]} 29.
Kxf3 {[%clk 0:02:02.6]} 29... Rf7+ {[%clk 0:00:15.4]} 30. Ke3 {[%clk 0:02:03.1]}
30... Rf4 {[%clk 0:00:14.5]} 31. Re8+ {[%clk 0:02:01]} 1-0